bitfinex/quotes_ETHUSD_20241105
["timestamp","ask_amount","ask_price","bid_price","bid_amount"]
[1730810419340,0.00668223,2445.3,2445.2,6.62707586]
[1730810419943,0.00668223,2445.3,2445.2,7.32105672]
[1730810420741,0.00668223,2445.3,2445.2,6.62707586]
[1730810421797,0.00668223,2445.3,2445.2,7.32090752]
[1730810421999,0.00668223,2445.3,2445.2,6.62707586]
[1730810422243,0.00668223,2445.3,2445.2,7.32091276]
[1730810422453,0.00668223,2445.3,2445.2,6.62707586]
[1730810426516,0.00668223,2445.3,2445.2,9.62707586]
[1730810426849,0.00668223,2445.3,2445.2,9.6247459]
[1730810427148,0.00668223,2445.3,2445.2,9.62479655]
[1730810429568,0.77578223,2445.3,2445.2,1.22905702]
[1730810429714,0.77578223,2445.3,2445.2,0.67456434]
[1730810430452,0.77578223,2445.3,2445.2,0.67451383]
[1730810431208,0.77578223,2445.3,2445.2,4.76415383]
[1730810431561,0.77578223,2445.3,2445.2,0.67451383]
[1730810431853,0.77578223,2445.3,2445.2,0.75697586]
[1730810432225,0.00668223,2445.3,2445.2,4.84661586]
[1730810432857,0.00668223,2445.3,2445.2,6.98179537]
[1730810433067,0.00668223,2445.3,2445.2,7.77335158]
[1730810433213,0.00668223,2445.3,2445.2,8.24156735]
[1730810434057,0.00668223,2445.3,2445.2,8.24171244]
[1730810435443,0.00668223,2445.3,2445.2,8.93514814]
[1730810437590,0.00668223,2445.3,2445.2,8.22537616]
[1730810437829,0.00668223,2445.3,2445.2,6.63074657]
[1730810437949,0.00668223,2445.3,2445.2,7.53315175]
[1730810438149,0.00668223,2445.3,2445.2,8.57440723]
[1730810438473,0.00668223,2445.3,2445.2,8.92148544]
[1730810439390,0.00668223,2445.3,2445.2,9.63125742]
[1730810440347,0.00668223,2445.3,2445.2,12.64125742]
[1730810440699,0.00668223,2445.3,2445.2,13.3824974]
[1730810440860,0.00668223,2445.3,2445.2,11.20744485]
[1730810441061,0.00668223,2445.3,2445.2,12.80435331]
[1730810441294,0.00668223,2445.3,2445.2,12.01108344]
[1730810441507,0.00668223,2445.3,2445.2,11.87251778]
[1730810441734,0.00668223,2445.3,2445.2,12.729708]
[1730810444982,0.00668223,2445.3,2445.2,10.96976612]
[1730810445381,0.0610546,2445.9,2445.8,4.08864]
[1730810445543,0.0610546,2445.9,2445.8,5.74782736]
[1730810445690,0.0610546,2445.9,2445.8,6.50496239]
[1730810446090,0.0610546,2445.9,2445.8,12.89542187]
[1730810446294,0.0610546,2445.9,2445.8,11.46173437]
[1730810447138,0.0610546,2445.9,2445.8,10.75196239]
[1730810447286,0.0610546,2445.9,2445.8,11.33024028]
[1730810448306,0.0610546,2445.9,2445.8,11.32024028]
[1730810448506,0.0610546,2445.9,2445.8,11.33024028]
[1730810448807,0.0610546,2445.9,2445.8,11.32024028]
[1730810449005,0.0610546,2445.9,2445.8,10.05496239]
[1730810451200,0.0610546,2445.9,2445.8,11.40688968]
[1730810454079,0.0610546,2445.9,2445.8,12.10388968]
[1730810454435,0.0610546,2445.9,2445.8,12.81366166]
[1730810454652,0.0610546,2445.9,2445.8,12.97597043]
[1730810454871,0.0610546,2445.9,2445.8,14.32789772]
[1730810455176,0.0610546,2445.9,2445.8,13.55424832]
[1730810455393,0.0610546,2445.9,2445.8,15.6092321]
[1730810455678,0.0610546,2445.9,2445.8,13.55424832]
[1730810455882,0.0610546,2445.9,2445.8,13.54816111]
[1730810456475,0.0610546,2445.9,2445.8,14.25127886]
[1730810456695,0.0610546,2445.9,2445.8,13.54816111]
[1730810456883,4.85851,2446.6,2446.2,4.08791]
[1730810457087,4.85851,2446.6,2446.3,1.16404299]
[1730810457282,0.7712,2446.6,2446.4,0.34624399]
[1730810457492,0.7712,2446.6,2446.3,4.905589]
[1730810457656,0.7712,2446.6,2446.5,0.40887188]
[1730810457856,0.7712,2446.6,2446.4,0.40893994]
[1730810458066,0.7712,2446.6,2446.5,0.40887188]
[1730810458374,0.7712,2446.6,2446.3,5.05041221]
[1730810458572,0.7712,2446.6,2446.5,0.40887188]
[1730810458746,0.7712,2446.6,2446.4,5.41032916]
[1730810458944,0.7712,2446.6,2446.5,0.75500644]
[1730810459442,0.7712,2446.6,2446.5,0.40887188]
[1730810459695,0.7712,2446.6,2446.5,0.75498652]
[1730810460051,0.7712,2446.6,2446.5,0.75499434]
[1730810461914,0.7712,2446.6,2446.5,1.78033089]
[1730810462213,0.7712,2446.6,2446.5,1.43417534]
[1730810462366,0.7827,2446.9,2446.7,4.08703]
[1730810462573,0.7827,2446.9,2446.8,0.34606467]
[1730810463104,0.7827,2446.9,2446.8,0.75430097]
[1730810463105,4.8695,2446.9,2446.8,0.75430097]
[1730810463271,4.8695,2446.9,2446.8,0.4082363]
[1730810463608,0.7827,2446.9,2446.8,0.34589043]
[1730810464283,4.8695,2446.9,2446.8,0.34589043]
[1730810464810,4.8695,2446.9,2446.8,0.75412673]
[1730810464982,4.8695,2446.9,2446.8,0.34589043]
[1730810465184,4.8695,2446.9,2446.8,0.75412673]
[1730810465379,4.8695,2446.9,2446.8,0.34589043]
[1730810465578,0.7827,2446.9,2446.8,0.75412673]
[1730810465785,0.7827,2446.9,2446.6,4.08719]
[1730810465998,0.7827,2446.9,2446.8,0.40783639]
[1730810466220,0.7827,2446.9,2446.7,0.75362996]
[1730810466375,0.7827,2446.9,2446.8,0.40783639]
[1730810466571,0.7827,2446.9,2446.8,0.75356192]
[1730810466771,0.7827,2446.9,2446.8,0.34572553]
[1730810467313,0.7827,2446.9,2446.8,0.75356976]
[1730810467615,4.8989446,2447.1,2446.8,0.75356976]
[1730810467776,4.8989446,2447.1,2446.9,0.34572553]
[1730810468004,4.8989446,2447.1,2446.8,0.40784423]
[1730810468209,4.8989446,2447.1,2447.0,0.40770817]
[1730810468717,0.8124546,2447.1,2447.0,0.7534177]
[1730810469107,4.8989146,2447.1,2447.0,0.7534177]
[1730810469309,4.8989146,2447.1,2447.0,0.40770817]
[1730810469637,4.8529,2446.9,2446.5,0.6915225]
[1730810469807,2.31151035,2447.1,2446.3,4.6639351]
[1730810469808,0.8221,2446.6,2446.3,4.7793952]
[1730810470006,0.8221,2446.6,2446.4,0.89922507]
[1730810470207,0.8221,2446.6,2446.5,0.89922507]
[1730810471003,0.8221,2446.6,2446.5,0.55353628]
[1730810471232,0.8221,2446.6,2446.5,1.30750309]
[1730810473352,0.8221,2446.6,2446.5,1.30798235]
[1730810474268,0.7564,2446.7,2446.5,1.30798235]
[1730810474562,4.84364,2446.7,2446.6,0.34614197]
[1730810474917,4.84364,2446.7,2446.6,0.75408309]
[1730810475428,4.84364,2446.7,2446.6,1.30846285]
[1730810476668,4.08724,2446.7,2446.6,1.30846285]
[1730810476834,5.790715,2446.7,2446.6,0.75408309]
[1730810477919,5.790715,2446.7,2446.6,0.40794112]
[1730810478240,4.08762,2446.5,2446.1,2.04422137]
[1730810478567,4.08762,2446.5,2446.2,0.90157511]
[1730810478867,4.08762,2446.5,2446.3,0.90157511]
[1730810479065,4.08762,2446.5,2446.4,0.90157511]
[1730810479729,4.89832,2446.5,2446.4,0.90157511]
[1730810480044,4.89832,2446.5,2446.4,0.34675809]
[1730810480245,4.08788,2446.3,2445.9,5.44039729]
[1730810480451,4.08788,2446.3,2446.0,1.44607876]
[1730810480788,4.08697,2446.8,2446.3,0.687]
[1730810481064,0.0610546,2447.1,2447.0,4.00973]
[1730810481266,0.0610546,2447.1,2447.0,1.98869627]
[1730810481478,0.0610546,2447.1,2447.0,1.24886052]
[1730810481681,0.8308546,2447.1,2447.0,0.55504686]
[1730810481841,0.8308546,2447.1,2447.0,0.34690175]
[1730810482045,5.40903206,2447.1,2447.0,0.34690175]
[1730810482225,0.0610546,2447.1,2447.0,0.34690175]
[1730810482425,0.0610546,2447.1,2447.0,0.90136986]
[1730810482739,0.0610546,2447.1,2447.0,0.34690175]
[1730810482940,4.1475146,2447.1,2447.0,0.34690175]
[1730810483244,0.8405546,2447.1,2447.0,0.34690175]
[1730810483667,0.8405546,2447.1,2447.0,0.90136404]
[1730810483837,0.0610546,2447.1,2447.0,0.90136404]
[1730810484766,0.0610546,2447.1,2447.0,1.30913495]
[1730810485325,0.0610546,2447.1,2447.0,5.39576495]
[1730810485550,0.0610546,2447.1,2447.0,1.30913495]
[1730810486887,0.8178546,2447.1,2447.0,1.30913495]
[1730810487676,0.0610546,2447.1,2447.0,5.39576495]
[1730810487865,0.0610546,2447.1,2447.0,7.41951565]
[1730810488077,0.0610546,2447.1,2447.0,6.72570199]
[1730810488731,0.0610546,2447.1,2447.0,1.30913495]
[1730810489639,0.0610546,2447.1,2447.0,5.39576495]
[1730810490857,0.8372546,2447.1,2447.0,1.30913495]
[1730810491050,0.0610546,2447.1,2447.0,4.49440091]
[1730810491270,0.0610546,2447.1,2447.0,5.40188437]
[1730810491452,0.0610546,2447.1,2447.0,4.84343156]
[1730810491641,0.0610546,2447.1,2447.0,5.40177352]
[1730810492540,0.0610546,2447.1,2447.0,6.42041842]
[1730810493642,0.0610546,2447.1,2447.0,7.11840386]
[1730810493842,0.0610546,2447.1,2447.0,10.28249911]
[1730810494044,0.0610546,2447.1,2447.0,13.18988582]
[1730810494292,0.0610546,2447.1,2447.0,13.18966979]
[1730810494493,0.0610546,2447.1,2447.0,13.87666979]
[1730810494694,0.0610546,2447.1,2447.0,11.26302433]
[1730810494842,0.0610546,2447.1,2447.0,11.68946918]
[1730810495045,0.0610546,2447.1,2447.0,13.61249144]
[1730810495281,0.0610546,2447.1,2447.0,11.97595672]
[1730810495767,0.0610546,2447.1,2447.0,11.97563633]
[1730810495973,0.0610546,2447.1,2447.0,11.2722027]
[1730810496478,0.0610546,2447.1,2447.0,11.97553564]
[1730810496860,0.8329,2447.8,2447.1,7.08634]
[1730810497175,0.8329,2447.8,2447.5,4.08578]
[1730810497571,0.8329,2447.8,2447.6,0.40684538]
[1730810497974,4.91824,2447.8,2447.6,0.40684538]
[1730810498482,4.91824,2447.8,2447.3,4.64399337]
[1730810498683,4.91824,2447.8,2447.7,0.40677739]
[1730810498887,4.91824,2447.8,2447.4,0.34844103]
[1730810499086,4.91824,2447.8,2447.7,0.40677739]
[1730810499249,4.91824,2447.8,2447.4,4.08593]
[1730810499448,4.91824,2447.8,2447.3,4.12659337]
[1730810499449,4.91824,2447.8,2447.7,0.40677739]
[1730810499674,4.08554,2447.7,2447.3,4.08611]
[1730810499996,4.08554,2447.7,2447.4,0.34839272]
[1730810500199,4.08554,2447.7,2447.5,0.34839272]
[1730810500488,4.08563,2447.6,2447.2,4.64365125]
[1730810500694,0.771,2447.5,2447.3,0.34838918]
[1730810500995,0.771,2447.5,2447.4,0.34838918]
[1730810501150,0.771,2447.5,2447.4,0.40631515]
[1730810501484,0.771,2447.5,2447.4,0.75472898]
[1730810501844,0.771,2447.5,2447.4,4.84068898]
[1730810502044,0.771,2447.5,2447.4,5.39815486]
[1730810502287,0.771,2447.7,2447.5,4.08579]
[1730810502460,4.85599,2448.0,2447.6,0.34841383]
[1730810502655,4.85599,2448.0,2447.6,0.40623401]
[1730810502951,4.85599,2448.0,2447.5,4.08569]
[1730810503284,4.85599,2448.0,2447.6,0.75457623]
[1730810503462,4.85599,2448.0,2447.6,0.40623401]
[1730810503790,8.94104,2448.0,2447.6,0.40623401]
[1730810504746,4.85599,2448.0,2447.6,4.49184401]
[1730810504944,4.08521,2447.9,2447.6,1.33268741]
[1730810505147,4.08521,2447.9,2447.6,0.40623401]
[1730810505445,4.08546,2447.7,2447.6,0.40623401]
[1730810505879,4.86603,2447.6,2447.2,0.55730135]
[1730810506076,4.08581,2447.5,2447.3,0.34841821]
[1730810506262,4.08609,2447.4,2447.0,6.48887341]
[1730810506665,4.08609,2447.4,2447.1,0.34847523]
[1730810506863,0.7804,2447.6,2447.2,4.43466523]
[1730810507092,4.86607,2447.6,2447.3,0.34847523]
[1730810507386,0.7804,2447.6,2447.4,0.34847523]
[1730810507690,0.7804,2447.6,2447.2,8.72993411]
[1730810507994,0.7804,2447.6,2447.3,0.34861905]
[1730810508189,0.7804,2447.6,2447.4,0.34861905]
[1730810508392,0.7804,2447.6,2447.2,9.87709993]
[1730810508393,0.7804,2447.6,2447.3,4.08606]
[1730810508693,0.7804,2447.6,2447.4,0.34878438]
[1730810508893,0.7804,2447.6,2447.2,5.2330245]
[1730810509197,0.7804,2447.6,2447.3,4.99295497]
[1730810509418,0.7804,2447.6,2447.4,0.34878508]
[1730810509590,0.7804,2447.6,2447.5,0.34878508]
[1730810510323,0.7804,2447.6,2447.3,4.08605]
[1730810510506,0.7804,2447.6,2447.4,0.9079654]
[1730810510709,4.08539,2447.8,2447.5,0.3489801]
[1730810511059,4.08539,2447.8,2447.6,4.08559]
[1730810511060,0.8226,2447.8,2447.6,4.08559]
[1730810511181,8.99272,2448.0,2447.7,0.3489801]
[1730810511387,4.90766,2448.0,2447.8,0.3489801]
[1730810511640,8.99273,2448.0,2447.6,4.08559]
[1730810511930,8.99273,2448.0,2447.7,0.34929138]
[1730810512084,0.8226,2448.0,2447.8,0.34929138]
[1730810512284,0.8226,2448.0,2447.7,4.52887814]
[1730810512285,0.8226,2448.2,2447.9,0.34929138]
[1730810512484,4.90736,2448.2,2448.0,0.34929138]
[1730810512729,4.08484,2448.1,2447.9,0.55868946]
[1730810512901,4.08484,2448.1,2447.8,0.687]
[1730810513235,4.08484,2448.1,2447.9,0.34917923]
[1730810513383,4.08496,2448.0,2447.9,0.34917923]
[1730810513584,5.8068,2448.0,2447.9,0.90790024]
[1730810513789,4.08525,2447.9,2447.5,0.6979696]
[1730810513985,4.08525,2447.9,2447.4,7.08588]
[1730810514289,4.08525,2447.9,2447.8,0.55883411]
[1730810514613,4.08525,2447.9,2447.8,0.90815136]
[1730810516326,4.08525,2447.9,2447.8,1.31424157]
[1730810516534,0.8226,2448.0,2447.8,1.87319664]
[1730810516828,0.8226,2448.0,2447.9,0.34931725]
[1730810517234,0.8226,2448.0,2447.9,0.75533948]
[1730810517890,0.8226,2448.0,2447.9,0.40602223]
[1730810518094,0.8226,2448.0,2447.9,0.75537249]
[1730810519316,0.8226,2448.0,2447.9,1.31441782]
[1730810519545,0.8226,2448.0,2447.9,1.31441735]
[1730810520120,0.8226,2448.0,2447.9,0.75537249]
[1730810520434,0.8226,2448.0,2447.9,1.31446891]
[1730810520820,0.8226,2448.0,2447.9,0.75537249]
[1730810521015,0.8226,2448.0,2447.9,0.40602223]
[1730810521332,5.806793,2448.0,2447.9,0.75547865]
[1730810522139,0.8226,2448.0,2447.9,1.31474226]
[1730810522547,4.90756,2448.0,2447.9,0.75547865]
[1730810522715,4.90756,2448.0,2447.9,0.34945642]
[1730810523052,4.90756,2448.0,2447.9,0.75522792]
[1730810523338,4.08549,2447.7,2447.5,0.6993221]
[1730810523547,4.08549,2447.7,2447.6,0.90929649]
[1730810523708,4.87049,2447.7,2447.6,0.90929649]
[1730810524337,5.766085,2447.7,2447.6,0.90929649]
[1730810524853,5.766085,2447.7,2447.6,0.34972797]
[1730810525050,5.766085,2447.7,2447.6,0.90935052]
[1730810525522,5.766085,2447.7,2447.6,0.34972797]
[1730810526151,0.785,2447.7,2447.6,0.34972797]
[1730810526523,0.785,2447.7,2447.6,0.90928117]
[1730810527060,4.87046,2447.7,2447.6,0.90928117]
[1730810527236,4.87046,2447.7,2447.6,0.34972797]
[1730810528576,4.87046,2447.7,2447.6,0.90923]
[1730810529083,0.785,2447.7,2447.6,0.90923]
[1730810529300,4.87046,2447.7,2447.6,0.90923]
[1730810529451,4.87046,2447.7,2447.6,0.34972797]
[1730810529648,4.87046,2447.7,2447.6,0.90921404]
[1730810530037,4.87046,2447.7,2447.6,0.34972797]
[1730810530537,4.87046,2447.7,2447.6,0.90911336]
[1730810530735,4.87046,2447.7,2447.6,0.3496628]
[1730810531181,4.87046,2447.7,2447.6,0.75555206]
[1730810532369,4.08537,2447.8,2447.6,0.75555206]
[1730810532564,4.08537,2447.8,2447.7,0.3496628]
[1730810532783,4.08537,2447.8,2447.7,0.75560157]
[1730810535194,4.08537,2447.8,2447.7,0.40593877]
[1730810535550,4.08559,2447.7,2447.4,0.687]
[1730810535752,4.08559,2447.7,2447.5,1.31512522]
[1730810535955,4.08559,2447.7,2447.6,0.34963636]
[1730810536202,4.08559,2447.7,2447.6,0.75563528]
[1730810538057,4.08541,2447.8,2447.6,0.75563528]
[1730810538286,4.08541,2447.8,2447.7,0.34963636]
[1730810538800,4.08541,2447.8,2447.7,0.75555946]
[1730810539092,4.08541,2447.8,2447.7,0.7555686]
[1730810540978,4.03541,2447.8,2447.7,0.7555686]
[1730810542707,4.03541,2447.8,2447.7,0.4059231]
[1730810542880,4.03541,2447.8,2447.7,0.75561867]
[1730810543090,4.03541,2447.8,2447.7,0.34969557]
[1730810543297,4.03541,2447.8,2447.7,0.75561867]
[1730810543510,4.03541,2447.8,2447.7,0.34969557]
[1730810543983,4.03541,2447.8,2447.7,0.7556265]
[1730810545019,3.98541,2447.8,2447.7,0.7556265]
[1730810546591,3.98541,2447.8,2447.7,0.75573508]
[1730810546922,3.98541,2447.8,2447.7,1.45534124]
[1730810549127,3.98541,2447.8,2447.7,2.01516093]
[1730810549499,3.98541,2447.8,2447.7,2.30312778]
[1730810549700,3.98541,2447.8,2447.7,2.01516093]
[1730810550187,3.98541,2447.8,2447.7,2.01546888]
[1730810551987,3.98541,2447.8,2447.7,1.31586246]
[1730810553296,4.80491,2447.8,2447.7,1.31586246]
[1730810556124,4.0852,2447.9,2447.7,1.31586246]
[1730810556329,4.0852,2447.9,2447.8,0.90993153]
[1730810556537,4.0851,2448.0,2447.8,0.90993153]
[1730810556691,4.0851,2448.0,2447.9,0.34997222]
[1730810557234,4.0851,2448.0,2447.9,0.75578288]
[1730810559220,4.0851,2448.0,2447.9,0.7559481]
[1730810561242,4.0851,2448.0,2447.9,0.40581066]
[1730810561743,4.08516,2447.9,2447.5,5.03605353]
[1730810561913,4.08516,2447.9,2447.6,0.50360535]
[1730810562653,4.08516,2447.9,2447.7,0.91031914]
[1730810563600,4.08516,2447.9,2447.7,0.3501213]
[1730810564651,4.08516,2447.9,2447.8,0.35013596]
[1730810564820,4.08516,2447.9,2447.8,0.5602213]
[1730810568258,4.08501,2448.0,2447.8,0.5602213]
[1730810568613,4.08501,2448.0,2447.9,1.61059467]
[1730810568950,4.08501,2448.0,2447.9,2.01640533]
[1730810569451,8.17329036,2448.0,2447.9,2.01640533]
[1730810570269,8.17329036,2448.0,2447.9,2.01651153]
[1730810571363,7.05926033,2448.0,2447.9,2.01651153]
[1730810571566,7.05926033,2448.0,2447.9,1.61070087]
[1730810572122,6.22996033,2448.0,2447.9,2.0165272]
[1730810572327,6.22996033,2448.0,2447.9,1.61070087]
[1730810572677,6.22996033,2448.0,2447.9,2.0165272]
[1730810573875,4.08501,2448.0,2447.9,1.61073427]
[1730810574055,6.22996033,2448.0,2447.9,1.61073427]
[1730810574369,5.19645003,2448.0,2447.9,2.0165606]
[1730810574530,8.13710036,2448.0,2447.9,2.0165606]
[1730810575122,5.99215003,2448.0,2447.9,2.0165606]
[1730810575356,4.88071,2448.0,2447.9,2.0165606]
[1730810575558,7.02656371,2448.0,2447.9,2.0165606]
[1730810576578,4.88071,2448.0,2447.9,2.0165606]
[1730810576870,7.02656371,2448.0,2447.9,2.0165606]
[1730810577541,7.02656371,2448.0,2447.9,1.61073427]
[1730810577741,7.02656371,2448.0,2447.9,2.0165606]
[1730810577972,4.08501,2448.0,2447.9,2.0165606]
[1730810579674,4.08501,2448.0,2447.9,2.18051637]
[1730810580801,4.08501,2448.0,2447.9,0.40582633]
[1730810580969,4.08501,2448.0,2447.9,1.61104299]
[1730810581183,4.08501,2448.0,2447.9,2.18081641]
[1730810583953,4.08501,2448.0,2447.9,2.17986923]
[1730810584152,4.08501,2448.0,2447.9,0.40582633]
[1730810584351,4.08501,2448.0,2447.9,1.61025946]
[1730810584576,4.08501,2448.0,2447.9,2.17994058]
[1730810588439,4.08482,2448.1,2447.9,2.17994058]
[1730810588641,4.08482,2448.1,2448.0,1.77411425]
[1730810588947,4.08463,2448.2,2448.0,1.77411425]
[1730810589113,4.0848,2448.1,2448.0,0.40567216]
[1730810589313,4.0848,2448.1,2448.0,2.17878894]
[1730810590759,4.08466,2448.2,2448.0,2.17878894]
[1730810590951,4.08466,2448.2,2448.1,0.90963063]
[1730810591118,4.08466,2448.2,2448.1,1.60935303]
[1730810591447,4.08466,2448.2,2448.1,2.01442349]
[1730810591660,4.1453546,2448.4,2448.1,3.78557414]
[1730810591805,4.1453946,2448.4,2448.2,1.21293577]
[1730810592157,4.1453946,2448.4,2448.1,1.22503884]
[1730810592158,4.1453946,2448.4,2448.3,2.01420921]
[1730810592514,4.1453946,2448.4,2448.3,2.01396849]
[1730810594330,0.0610546,2448.4,2448.3,2.01365532]
[1730810594516,4.1453446,2448.4,2448.3,2.01365532]
[1730810594866,4.1453446,2448.4,2448.3,2.71179896]
[1730810595150,4.1453446,2448.4,2448.3,2.01289572]
[1730810596442,4.1453446,2448.4,2448.3,0.90858656]
[1730810598464,4.1453446,2448.4,2448.3,0.90832265]
[1730810598919,4.1453446,2448.4,2448.3,1.60693665]
[1730810598920,4.9251446,2448.4,2448.3,1.60693665]
[1730810599125,4.9251446,2448.4,2448.3,0.90832265]
[1730810599356,4.9251446,2448.4,2448.3,1.31336784]
[1730810599558,4.9251446,2448.4,2448.3,0.90832265]
[1730810600341,4.1453446,2448.4,2448.3,0.90832265]
[1730810600544,4.1453446,2448.4,2448.3,1.31336784]
[1730810602136,4.1453446,2448.4,2448.3,0.90832265]
[1730810603075,4.1453446,2448.4,2448.3,1.31336784]
[1730810604876,4.1453446,2448.4,2448.3,2.00036784]
[1730810605048,4.1453446,2448.4,2448.3,2.01211325]
[1730810605776,4.1453446,2448.4,2448.3,0.40504519]
[1730810605975,4.1453446,2448.4,2448.3,2.01223731]
[1730810606276,4.1453446,2448.4,2448.3,2.69919031]
[1730810606685,0.0610546,2448.4,2448.3,2.69919031]
[1730810607742,0.0610546,2448.4,2448.3,3.43581984]
[1730810608153,0.0610546,2448.4,2448.3,2.69919031]
[1730810608354,0.0610546,2448.4,2448.3,1.79078105]
[1730810608584,0.0610546,2448.4,2448.3,2.69905394]
[1730810612883,0.0610546,2448.4,2448.3,1.44135527]
[1730810613045,0.0610546,2448.4,2448.3,2.6991893]
[1730810613248,0.0610546,2448.4,2448.3,7.92873969]
[1730810613678,0.0610546,2448.4,2448.3,8.0921468]
[1730810614081,0.0610546,2448.4,2448.3,4.0076868]
[1730810614392,0.0610546,2448.4,2448.3,2.17559641]
[1730810614547,4.1453446,2448.4,2448.3,2.0121893]
[1730810614764,4.1453446,2448.4,2448.3,2.59431541]
[1730810614968,7.9433446,2448.4,2448.3,9.3e-06]
[1730810615212,4.8733,2447.8,2447.7,0.16339407]
[1730810615357,4.8733,2447.8,2447.4,0.94845656]
[1730810615563,4.8733,2447.8,2447.4,0.687]
[1730810615564,8.17108,2447.7,2447.4,0.687]
[1730810615761,4.08548,2447.7,2447.4,0.687]
[1730810615959,4.08548,2447.7,2447.2,1.26912611]
[1730810616182,4.08548,2447.7,2447.3,0.16345128]
[1730810616183,4.08583,2447.5,2447.3,0.16345128]
[1730810616392,4.08581,2447.5,2447.2,1.55837639]
[1730810616576,4.08581,2447.5,2447.3,0.16344289]
[1730810616774,4.08581,2447.5,2447.2,1.55837639]
[1730810617008,4.08581,2447.5,2447.3,0.16342274]
[1730810617302,4.08581,2447.5,2447.2,1.55837639]
[1730810617611,8.17172,2447.5,2447.2,0.97625028]
[1730810617905,4.03581,2447.5,2447.2,0.97625028]
[1730810618063,4.03581,2447.5,2447.3,0.16343691]
[1730810618264,4.03581,2447.5,2447.2,0.97625028]
[1730810619162,4.08599,2447.4,2447.2,0.687]
[1730810619367,4.08599,2447.4,2447.2,0.85008211]
[1730810619787,4.03581,2447.5,2447.2,0.687]
[1730810619964,4.03581,2447.5,2447.2,0.85008211]
[1730810620303,8.12176,2447.5,2447.2,0.687]
[1730810620503,8.12176,2447.5,2447.2,0.85008211]
[1730810620668,8.12176,2447.5,2447.2,0.687]
[1730810620669,4.08597,2447.4,2447.2,0.687]
[1730810620869,4.08597,2447.4,2447.2,0.85008211]
[1730810621108,4.08597,2447.4,2447.2,0.687]
[1730810621314,4.08597,2447.4,2447.2,0.85008211]
[1730810621613,4.08597,2447.4,2447.2,0.687]
[1730810621820,0.788,2447.8,2446.0,0.687]
[1730810621821,4.08713,2446.7,2446.0,0.687]
[1730810622107,4.0873,2446.6,2446.0,2.1163603]
[1730810622334,4.08772,2446.4,2446.0,0.687]
[1730810622494,4.08763,2446.5,2446.0,0.687]
[1730810622695,4.08763,2446.5,2446.1,0.34167159]
[1730810622895,4.08774,2446.4,2446.1,0.34167159]
[1730810623630,4.08772,2446.4,2446.1,0.34167159]
[1730810624212,4.0879,2446.3,2446.1,0.34167159]
[1730810624459,4.08797,2446.2,2446.1,0.34167159]
[1730810624802,4.08785,2446.3,2446.1,0.34167159]
[1730810625027,4.08797,2446.2,2446.1,0.34167159]
[1730810625601,4.08785,2446.3,2446.1,0.34167159]
[1730810626836,8.17575,2446.3,2446.1,0.34167159]
[1730810627434,8.17579,2446.3,2446.1,0.34167159]
[1730810627736,4.08797,2446.2,2446.1,0.34167159]
[1730810628998,4.08816,2446.1,2445.8,0.687]
[1730810629542,4.08785,2446.3,2445.8,0.687]
[1730810629755,4.08864,2445.9,2445.7,0.721283]
[1730810629912,4.08857,2445.9,2445.7,0.37544746]
[1730810630106,4.08856,2445.9,2445.7,0.37544746]
[1730810630353,4.90005,2446.2,2445.7,0.37544746]
[1730810630557,5.4319335,2446.2,2445.7,0.37544746]
[1730810630852,4.08864,2445.8,2445.7,0.37544746]
[1730810632216,4.0885,2445.9,2445.7,0.37544746]
[1730810632465,4.08825,2446.1,2445.7,0.37544746]
[1730810632639,4.0883,2446.0,2445.7,0.37544746]
[1730810633253,4.08858,2445.9,2445.7,0.37544746]
[1730810633555,4.08864,2445.8,2445.7,0.37544746]
[1730810635558,4.0893,2445.5,2445.2,0.34583554]
[1730810636157,4.08931,2445.4,2445.3,0.34476958]
[1730810636453,4.08948,2445.3,2445.2,0.34532916]
[1730810636755,4.08948,2445.3,2444.9,1.03232916]
[1730810636956,4.08948,2445.3,2444.9,1.59986214]
[1730810637324,4.08965,2445.2,2445.0,0.34532916]
[1730810637519,4.08965,2445.2,2445.1,0.34532916]
[1730810637719,4.08965,2445.2,2445.0,0.34532916]
[1730810638044,4.08981,2445.1,2444.9,0.687]
[1730810638355,4.08981,2445.1,2445.0,0.34532916]
[1730810638656,4.08981,2445.1,2444.8,0.34532916]
[1730810638862,4.08981,2445.1,2444.9,0.34532916]
[1730810639156,4.08981,2445.1,2445.0,0.34532916]
[1730810639359,4.08981,2445.1,2444.8,0.34532916]
[1730810639524,4.08981,2445.1,2444.6,0.42585129]
[1730810639525,4.09007,2445.0,2444.6,0.42585129]
[1730810639714,4.09021,2444.9,2444.7,0.34400069]
[1730810639915,4.09021,2444.9,2444.8,0.34404967]
[1730810639916,3.2370219,2444.9,2444.8,0.34404967]
[1730810642430,4.09001,2445.0,2444.8,1.23986031]
[1730810642618,4.09001,2445.0,2444.5,0.68810961]
[1730810642619,4.09001,2445.0,2444.9,0.89453325]
[1730810642827,4.09001,2445.0,2444.9,0.68930859]
[1730810643157,4.08976,2445.2,2444.9,0.68930859]
[1730810643464,4.08972,2445.2,2445.0,0.89453325]
[1730810643660,4.08972,2445.2,2444.6,4.66398112]
[1730810643661,4.08972,2445.2,2445.1,1.23965589]
[1730810643822,4.91095,2445.3,2445.1,1.23965589]
[1730810644155,4.91095,2445.3,2445.1,0.34404967]
[1730810644342,4.91095,2445.3,2445.2,1.2406443]
[1730810644555,4.09888,2445.7,2445.2,1.2406443]
[1730810644556,0.8106,2445.7,2445.2,1.2406443]
[1730810644761,4.89941,2445.7,2445.3,0.34404967]
[1730810644963,4.89941,2445.7,2445.4,0.89558979]
[1730810645151,4.89941,2445.7,2445.4,0.68896793]
[1730810645483,4.89941,2445.7,2445.5,0.89567462]
[1730810645782,4.89941,2445.7,2445.0,0.57343112]
[1730810645783,4.08897,2445.6,2445.0,4.66340112]
[1730810645944,4.08897,2445.6,2445.1,0.87980563]
[1730810646150,4.08897,2445.6,2445.2,1.03430684]
[1730810646478,4.89941,2445.7,2445.3,1.58593578]
[1730810646791,4.08861,2445.9,2445.1,5.19947432]
[1730810646792,4.08867,2445.8,2445.4,1.58593578]
[1730810647073,4.08846,2446.0,2445.5,0.89639446]
[1730810647301,4.0883,2446.0,2445.6,0.89639446]
[1730810647572,4.08848,2445.9,2445.7,1.58593578]
[1730810647780,4.08864,2445.8,2445.5,0.57462421]
[1730810648071,4.08864,2445.8,2445.6,1.58707841]
[1730810648248,4.08864,2445.8,2445.7,1.58707841]
[1730810648452,4.08833,2446.0,2445.7,1.58707841]
[1730810648652,4.08833,2446.0,2445.8,1.03505203]